Cogmind - Beta 13 @@@ ROGUE MODE // 2024.04.20 @ 16:42:25 Player: zoefiri Result: Destroyed self with Grenade Launcher Performance ------------- Evolutions (0) 0 Regions Visited (2) 400 Robots Destroyed (22) 110 Value Destroyed (533) 533 Prototype IDs (0) 0 Alien Tech Used (0) 0 Bonus (0) 0 TOTAL SCORE: 1043 Bonus ------- None Cogmind --------- Core Integrity 0/250 Matter 184/300 Energy 100/100 System Corruption 0% Temperature Cool (0) Movement Walking (190) Ox1 Location -10/Mines Parts ------- > --- POWER (1) -------- (None) > --- PROPULSION (2) --- Aluminum Leg Aluminum Leg > --- UTILITY (2) ------ Large Storage Unit Light Armor Plating > --- WEAPON (2) ------- Grenade Launcher > --- INVENTORY (15) --- Light Ion Engine Aluminum Leg Compact Wheel Heat Sink Weight Redist. System Light Armor Plating Shield Generator Shield Generator Shield Generator EM Shotgun Medium Laser Particle Gun Light Cannon Light Cannon Grenade Launcher Peak State ------------ > --- POWER ------------ Ion Engine > --- PROPULSION ------- Light Treads Light Treads > --- UTILITY ---------- High-capacity Storage Unit Light Armor Plating > --- WEAPON ----------- Medium Laser Particle Gun > --- INVENTORY -------- Ion Engine Aluminum Leg Aluminum Leg Aluminum Leg Aluminum Leg Wheel Compact Wheel Small Storage Unit Weight Redist. System Weight Redist. System Light Armor Plating Shield Generator Shield Generator Shield Generator Shield Generator EM Shotgun EM Shotgun EM Shotgun EM Shotgun Medium Laser [Rating: 11] Favorites ----------- Power Ion Engine Engine Ion Engine Propulsion Light Treads Treads Light Treads Leg Aluminum Leg Utility Light Armor Plating Storage Large Storage Unit Protection Light Armor Plating Weapon Medium Laser Energy Gun Medium Laser Launcher Grenade Launcher Build | -11 -10 -10 ------- Run | Yrd Mat Min Slots Evolved . | . . . Power . | . . . Propulsion . | . . . Utility . | . . . Weapon . | . . . Parts Attached 22 | 6 15 1 Power 4 | 1 3 . Engine 4 | 1 3 . Core . | . . . Reactor . | . . . Propulsion 4 | 2 2 . Treads 2 | 2 . . Leg 2 | . 2 . Wheel . | . . . Hover . | . . . Flight . | . . . Utility 8 | 1 7 . Device . | . . . Storage 5 | 1 4 . Processor . | . . . Hackware . | . . . Protection 3 | . 3 . Artifact . | . . . Weapon 6 | 2 3 1 Energy Gun 5 | 2 3 . Energy Cannon . | . . . Ballistic Gun . | . . . Ballistic Cannon . | . . . Launcher 1 | . . 1 Special Weapon . | . . . Impact Weapon . | . . . Slashing Weapon . | . . . Piercing Weapon . | . . . Special Melee Weapon . | . . . Unidentified Prototypes . | . . . Parts Lost 4 | . 2 2 Power 1 | . . 1 Propulsion . | . . . Utility 1 | . 1 . Weapon 2 | . 1 1 Highest Loss Streak 2 | . 1 2 To Critical Strikes . | . . . Average Slot Usage (%) 99 | . 98 99 Engine 14 | . 14 14 Treads 17 | . 23 . Leg 9 | . 4 28 Storage 13 | . 13 14 Protection 13 | . 13 14 Energy Gun 24 | . 27 14 Launcher 3 | . . 13 Naked Turns . | . . . Heaviest Build 91 | 13 91 33 Greatest Support 40 | 40 40 20 Greatest Overweight (x) 10 | . 10 1 Average Overweight (x) . | . . 1 Largest Inventory Capacity 25 | 8 25 15 Average Capacity 16 | 6 17 15 Most Carried 20 | 6 20 15 Average Carried 14 | 4 15 15 Final Capacity 15 | 8 15 15 Final Carried 15 | 6 15 15 Class Distribution -------------------- 100% | Mutant Dominant Class ---------------- Mutant | -10/Materials Mutant | -10/Mines Resources | -11 -10 -10 ----------- Run | Yrd Mat Min Matter Collected 463 | . 443 20 Remotely . | . . . Salvage Created 801 | . 798 3 Parts 48 | . 44 4 Haulers Intercepted 2 | . 2 . Recyclers Shooed 1 | . 1 . Parts Field Recycled . | . . . Retrieved Matter . | . . . Parts Self-Destructed . | . . . Prevented . | . . . Kills | -11 -10 -10 ------- Run | Yrd Mat Min Combat Hostiles Destroyed 18 | . 11 7 Guns 10 | . 10 . AOE 8 | . 1 7 Classes Destroyed 7 | . 5 2 Hauler 2 | . 2 . Recycler 2 | . 2 . Operator 2 | . 2 . Watcher 2 | . 2 . Swarmer 3 | . . 3 Grunt 11 | . 11 . Assembled 4 | . . 4 Best Kill Streak 4 | . 3 4 Combat Bots Only 4 | . 3 4 Max Kills in Single Turn 3 | . 1 3 Gunslinging . | . . . Exploded 3 | . 1 3 Melee . | . . . Uniques/NPCs Destroyed . | . . . Combat | -11 -10 -10 -------- Run | Yrd Mat Min Hostile Shots Fired 93 | . 68 25 Missed 20 | . 11 9 Damage Taken 1101 | . 804 297 Core 257 | . 186 71 Absorbed by Shields . | . . . Core Remaining (%) 100 | 100 . . Volleys Fired 71 | . 64 7 Largest 2 | . 2 2 Hottest 115 | . 115 80 Shots Fired 126 | . 115 11 Gun 119 | . 115 4 Cannon . | . . . Launcher 7 | . . 7 Special . | . . . Kinetic . | . . . Thermal 104 | . 100 4 Explosive 7 | . . 7 Electromagnetic 15 | . 15 . Robot Hit Streak 9 | . 9 3 Robot Miss Streak 6 | . 6 1 Penetration Max . | . . . Secondary Targets 2 | . 2 . Max Gunslinging Chain 1 | . 1 . Shots Hit Robots 78 | . 74 4 Core Hits 45 | 1 31 13 Critical Kills . | . . . Critical Parts Destroyed . | . . . Critical Strikes 3 | . 3 . Burn 3 | . 3 . Melee Attacks . | . . . Impact . | . . . Slashing . | . . . Piercing . | . . . Sneak Attacks . | . . . Combat Hostiles . | . . . Follow-up Attacks . | . . . Damage Inflicted 1652 | 6 1095 551 Guns 989 | . 989 . Cannons . | . . . Explosions 644 | . 95 549 Melee . | . . . Ramming 19 | 6 11 2 Kinetic . | . . . Thermal 924 | . 924 . Explosive 549 | . . 549 Electromagnetic 160 | . 160 . Impact . | . . . Slashing . | . . . Piercing . | . . . Highest Corruption . | . . . Average Corruption . | . . . Corruption Purged . | . . . Corruption Blocked . | . . . Overload Shots . | . . . Overflow Damage 35 | . . 35 Projectiles . | . . . Explosions 35 | . . 35 Melee . | . . . Knockbacks . | . . . Impact . | . . . Kinetic . | . . . Secondary . | . . . Self-Inflicted Damage 126 | . 39 87 Shots 4 | . 1 3 Rammed 7 | 4 3 . Targets Rammed 8 | 4 3 1 Kicked 1 | . . 1 Crushed . | . . . Highest Temperature 617 | . 617 108 Average Temperature 157 | . 162 56 Received Heat Transfer 420 | . 420 . Effects 23 | . 23 . Shutdowns 5 | . 5 . Energy Bleed 5 | . 5 . Interference 5 | . 5 . Matter Decay 2 | . 2 . Short Circuit 2 | . 2 . Damage (minor) 1 | . 1 . Damage (major) 2 | . 2 . Damage (core) 1 | . 1 . Siege Activations . | . . . Robots Corrupted . | . . . Combat Hostiles . | . . . Parts Fried . | . . . Impact Corruptions . | . . . Robots Melted . | . . . Combat Hostiles . | . . . Parts Melted 4 | . 4 . Heat Transferred 2595 | . 2595 . Parts Sabotaged . | . . . Parts Stolen . | . . . Parts Stripped . | . . . Power Chain Reactions 1 | . 1 . Alert | -11 -10 -10 ------- Run | Yrd Mat Min Peak Influence 172 | . 172 146 Initial 25 | . . 25 Average 73 | . 60 138 Maximum Alert Level . | . . . Low Security (%) 100 | 100 100 100 Level 1 . | . . . Level 2 . | . . . Level 3 . | . . . Level 4 . | . . . Level 5 . | . . . High Security . | . . . Max Security . | . . . Squads Dispatched 4 | . 4 . Investigation 1 | . 1 . Extermination . | . . . Reinforcement 3 | . 3 . Assault . | . . . Garrison . | . . . Intercept . | . . . Searches Triggered . | . . . Construction Impeded . | . . . Haulers Reinforced . | . . . Active Scanning Responses . | . . . Cargo Convoy Interrupts . | . . . Stealth | -11 -10 -10 --------- Run | Yrd Mat Min Distress Signals 1 | . 1 . Communications Jammed . | . . . Distress Signals . | . . . Times Spotted 32 | . 20 12 Peak Tracking Total 10 | . 4 10 Tactical Retreats 1 | . 1 . Traps | -11 -10 -10 ------- Run | Yrd Mat Min Traps Triggered 1 | . 1 . Indirectly . | . . . Trap Hack Attempts . | . . . Triggered . | . . . Disarmed . | . . . Reprogrammed . | . . . Reused . | . . . Traps Extracted . | . . . Installed . | . . . Triggered . | . . . Machines | -11 -10 -10 ---------- Run | Yrd Mat Min Machines Disabled 1 | . . 1 Max in Single Turn 1 | . . 1 Machines Repaired . | . . . Machines Dismantled . | . . . Machines Sabotaged . | . . . Overloaded Fab Kills . | . . . Hacking | -11 -10 -10 --------- Run | Yrd Mat Min Machines Accessed . | . . . Terminals . | . . . Fabricators . | . . . Repair Stations . | . . . Recycling Units . | . . . Scanalyzers . | . . . Garrison Access . | . . . Total Hacks . | . . . Successful . | . . . Failed . | . . . Catastrophic . | . . . Database Lockouts . | . . . Manual . | . . . Terminals . | . . . Fabricators . | . . . Repair Stations . | . . . Recycling Units . | . . . Scanalyzers . | . . . Garrison Access . | . . . Terminal Hacks . | . . . Fabricator Hacks . | . . . Repair Station Hacks . | . . . Recycling Unit Hacks . | . . . Scanalyzer . | . . . Garrison Access Hacks . | . . . Unauthorized Hacks . | . . . Terminals . | . . . Fabricators . | . . . Repair Stations . | . . . Recycling Units . | . . . Scanalyzers . | . . . Garrison Access . | . . . Data Cores Recovered . | . . . Used . | . . . Hacking Detections . | . . . Full Trace Events . | . . . Feedback Events . | . . . Feedback Blocked . | . . . Robot Schematics Acquired . | . . . Robots Built . | . . . Authchips . | . . . Time . | . . . Total Robot Build Rating . | . . . Part Schematics Acquired . | . . . Parts Built . | . . . Authchips . | . . . Time . | . . . Total Part Build Rating . | . . . Parts Repaired . | . . . Time . | . . . Parts Recycled . | . . . Recycled Matter . | . . . Retrieved Matter . | . . . Retrieved Components . | . . . Parts Scanalyzed . | . . . Part Schematics Acquired . | . . . Parts Damaged . | . . . Bothacking | -11 -10 -10 ------------ Run | Yrd Mat Min Used RIF Installer . | . . . Robots Hacked . | . . . Non-combat . | . . . Combat . | . . . Robot Hacks Applied . | . . . Relay Couplers Released . | . . . Fabnet Peak Effective % . | . . . Robots Rewired . | . . . Allies Hacked . | . . . Hacks Repelled . | . . . Allies | -11 -10 -10 -------- Run | Yrd Mat Min Total Allies . | . . . Largest Group . | . . . Highest-Rated Group . | . . . Highest-Rated Ally . | . . . Total Orders . | . . . Ally Attacks . | . . . Total Damage . | . . . Kills . | . . . Allies Corrupted . | . . . Allies Melted . | . . . Intel | -11 -10 -10 ------- Run | Yrd Mat Min Robot Analysis Total . | . . . Derelict Logs Recovered 1 | . . 1 Drone Launches . | . . . Drone Recoveries . | . . . Exploration | -11 -10 -10 ------------- Run | Yrd Mat Min Turns Passed 1925 | 114 1406 405 Spaces Moved 829 | 67 561 201 Core 13 | 12 1 . Treads 505 | 55 450 . Legs 311 | . 110 201 Wheels . | . . . Hover . | . . . Flight . | . . . Fastest Speed 50 | 50 160 190 Average Speed 195 | 140 203 190 Slowest Speed 550 | 160 550 190 Overloaded Moves . | . . . Propulsion Burnouts . | . . . Robots Hopped . | . . . Cave-ins Triggered . | . . . Exploration Rate (%) 45 | 5 85 46 Regions Visited 2 Branch Regions 1 Pre-discovered Areas . | . . . Known Exits Taken . | . . . Unknown Exits Taken 2 | 1 1 . Scrap Searched 1 | . . 1 Spaces Dug 16 | . . 16 Terrain Destroyed 53 | . 6 47 Melee . | . . . Projectile . | . . . AOE 53 | . 6 47 Terrain Rammed . | . . . Walls Destroyed . | . . . Machines Disabled . | . . . Actions | -11 -10 -10 --------- Run | Yrd Mat Min Total 1004 | 82 709 213 Wait 18 | . 15 3 Move 828 | 67 560 201 Hop . | . . . Pick Up 40 | 6 34 . Fast Attach 15 | 6 9 . Attach 2 | . 2 . Detach 1 | . 1 . Swap 5 | . 4 1 Drop 17 | . 17 . Fire 71 | . 64 7 Melee . | . . . Ram . | . . . Kick 1 | . . 1 Crush 6 | 3 3 . Escape Stasis . | . . . Rewire . | . . . Trap . | . . . Miscellaneous . | . . . Route ------- -11/Scrapyard -10/Materials (discovered 4 exits: [*Mat x3] / [*Min]) -10/Mines (discovered 2 exits: [*Mat x2]) History --------- Turn | Location | Event 86 | -11/Scrapyard | Discovered new exit (range 12) 115 | -11/Scrapyard | Entered Materials 318 | -10/Materials | Build established: Mutant 804 | -10/Materials | Discovered new exit (range 10) 956 | -10/Materials | Discovered new exit (range 12) 1120 | -10/Materials | Core integrity fell below 50% 1359 | -10/Materials | Discovered new exit (range 4) 1488 | -10/Materials | Discovered new exit (range 15) 1521 | -10/Materials | Entered Mines 1537 | -10/Mines | Met a Derelict bent on vengeance 1575 | -10/Mines | Learned 2 Materials zone layouts 1677 | -10/Mines | Discovered new exit (range 9) 1807 | -10/Mines | Discovered new exit (range 9) 1908 | -10/Mines | Assembled infested the area 1922 | -10/Mines | Core integrity fell below 20% 1926 | -10/Mines | Destroyed self with Grenade Launcher Last Messages --------------- EXIT=FOUND Searching scrap... Found Hcp. Matter Pod. Found Propulsion Shielding. Found 39 Matter. Found Lrg. Storage Unit. Found 18 Matter. Acquired 18 matter. EXIT=FOUND Kicked U-05 Engineer. ALERT: Infestation in the mines, dispatching Demolisher response squad. Med. Laser destroyed. Ion Engine destroyed. as-13133 destroyed. as-45921 powers down. as-27395 powers down. as-87191 destroyed. as-95147 destroyed. as-39489 destroyed. Map ----- +----------------------------------------------------+ | ???????????????????????#########??????????????? | | ???????????????????????# #??????????????# | | ???????????????????????# < #?????????????## | | ???????????????????????# #######??????## | | ???????????????????????# #?????## | | ???????????????????????# """ ##### #?????# | | ???????????????????????# """ #???# #?????# | | ???????????????????????# """ #???# #?????# | | ???????????????????????############# ####### | | ???????????????????????????????# | | ???????????????????????????????# | | ???????????????????????????????# ########## | | ???????????????????????????????# ###??????# | | ??????????????????????????????## ##????# | | ?????????????????????????????## ##???# | | ????????????????????????????## ##??## | | ????????????????????????????# #???## | | ????????????????????????????# ##????# ## | | ????????????????????????????## ## ##?????# #? | | ?????????????????????????????## ### #??????# #? | | ??????????????????????????????# #?# #??????# ? | | ???????????????#???????##?????# #?# #??????###? | | ??????????????## ????## ####### ### #?????????? | | ?????????????## #?### #?????????? | | ?????????????# ## #############?????????? | | ?????????????# #a @ #?????????????????????? | | ?????????????# % #????????????????????? | | ?????????????# ##????????????????????? | | ?????????????## a # ?????????????????????? | | ??????????????## ## ##????????????????????? | | ???????????????#aa ## #?????????????????????? | | ???????????????# ## ##?????????????????????? | | ???????????????# ?# #??????????????????????? | | ???????????????## ?# ??????????????????????? | | ????????????????## ?###??????????????????????? | | ?????????????????? ??????????????????????????? | | ?????????????????? ??????????????????????????? | | ?????????????????? ??????????????????????????? | | ?????????????????? ??????????????????????????? | | ?????????????????? ??????????????????????????? | | ?????????????????? ??????????????????????????? | | ?????????????????? ??????????????????????????? | | ??????????????????????????????????????????????? | | ??????????????????????????????????????????????? | | ??????????????????????????????????????????????? | | ??????????????????????????????????????????????? | | ??????????????????????????????????????????????? | | ??????????????????????????????????????????????? | | ??????????????????????????????????????????????? | | ??????????????????????????????????????????????? | +----------------------------------------------------+ Best States ------------- Heat Dissipation 25 Energy Generation 10 Energy Capacity 250 Matter Stores 300 Matter Capacity 300 Sight Range 16 Terrain Scan Density 10 Armor Coverage 150 Evasion (%) 40 Recoil Reduction 2 Item Schematics ----------------- None Robot Schematics ------------------ None Fabricated ------------ Nothing Alien Tech Used ----------------- None Achievements -------------- None Challenges ------------ None Game ------ Seed LinkedParticleProcessor Manual? 0 Play Time 00:13:25 Cumulative 14.2 hours Start 2024.04.15 @ 23:09:37 End 2024.04.20 @ 16:42:25 Sessions 1 Manual Loads 0 Difficulty Rogue Special Mode None Game No. 23 Rogue 20 Adventurer 0 Explorer 3 Win Type - Total 0 Types 0/0/0/0/0/0/0/0/0 Lore% 13 Gallery% 23 Achievement% 19 Wizard Run 0 Options --------- Layout 1 ASCII 0 Keyboard 0 Movement Arrows Keybinds 0 Fullscreen 0 Font 28/SmallcapsGlow Map View 50x43 Zoom Use 0% Tactical HUD 0 Map Filters NONE Filters NONE Steam 1 RUN: c99e2261-c585-49db-90b7-8aa05bd221c6